[Event "*** Titled Tuesday Blitz"]
[Site "Chess.com"]
[Date "2020.04.07"]
[Round "4"]
[White "ruslansezdbekov"]
[Black "Chopper1905"]
[Result "0-1"]
[WhiteElo "2569"]
[BlackElo "2859"]
[TimeControl "180+1"]
[EndTime "13:41:20 PDT"]
[Termination "Chopper1905 won by resignation"]

1. e4 {[%clk 0:02:59.6]} 1... c5 {[%clk 0:02:57.2]} 2. Nf3 {[%clk 0:02:57.5]}
2... d6 {[%clk 0:02:57.5]} 3. c3 {[%clk 0:02:57.5]} 3... Nf6 {[%clk 0:02:57.3]}
4. Be2 {[%clk 0:02:57.5]} 4... g6 {[%clk 0:02:57.1]} 5. O-O {[%clk 0:02:56.9]}
5... Bg7 {[%clk 0:02:57.4]} 6. Qc2 {[%clk 0:02:54.6]} 6... Qc7 {[%clk
0:02:55.7]} 7. d3 {[%clk 0:02:50.6]} 7... O-O {[%clk 0:02:55.1]} 8. a3 {[%clk
0:02:48]} 8... b6 {[%clk 0:02:53.9]} 9. h3 {[%clk 0:02:45]} 9... Bb7 {[%clk
0:02:54.1]} 10. Bf4 {[%clk 0:02:42.7]} 10... Nbd7 {[%clk 0:02:46.9]} 11. Nbd2
{[%clk 0:02:42.6]} 11... Rac8 {[%clk 0:02:45]} 12. Nh2 {[%clk 0:02:37.2]} 12...
e5 {[%clk 0:02:23.9]} 13. Bg3 {[%clk 0:02:30.3]} 13... d5 {[%clk 0:02:24]} 14.
exd5 {[%clk 0:02:25.8]} 14... Nxd5 {[%clk 0:02:23.2]} 15. Bf3 {[%clk 0:02:17.9]}
15... f5 {[%clk 0:02:21.9]} 16. Rae1 {[%clk 0:02:10]} 16... Rce8 {[%clk
0:02:01]} 17. Qb3 {[%clk 0:02:08.8]} 17... Nf6 {[%clk 0:01:49.2]} 18. Nc4 {[%clk
0:02:07.5]} 18... f4 {[%clk 0:01:31.5]} 19. Bh4 {[%clk 0:02:07.2]} 19... Kh8
{[%clk 0:01:31.9]} 20. Bxf6 {[%clk 0:01:59]} 20... Bxf6 {[%clk 0:01:30.1]} 21.
Ng4 {[%clk 0:01:58.6]} 21... Bg7 {[%clk 0:01:05.4]} 22. Ncxe5 {[%clk 0:01:56.3]}
22... Rd8 {[%clk 0:01:02.7]} 23. d4 {[%clk 0:01:48.3]} 23... Rd6 {[%clk
0:00:50.1]} 24. Re2 {[%clk 0:01:38.1]} 24... h5 {[%clk 0:00:43.9]} 25. Nh2
{[%clk 0:01:34.3]} 25... Ba6 {[%clk 0:00:38.9]} 26. c4 {[%clk 0:01:33.8]} 26...
Ne7 {[%clk 0:00:36.7]} 27. d5 {[%clk 0:01:30.3]} 27... Nf5 {[%clk 0:00:29]} 28.
Qd3 {[%clk 0:01:30.5]} 28... Kh7 {[%clk 0:00:18.7]} 29. Rfe1 {[%clk 0:01:26.9]}
29... Nd4 {[%clk 0:00:18.7]} 30. Nxg6 {[%clk 0:01:15.3]} 30... Rxg6 {[%clk
0:00:13.3]} 31. Bxh5 {[%clk 0:01:14]} 31... Nxe2+ {[%clk 0:00:10.1]} 32. Rxe2
{[%clk 0:01:14]} 32... Rf6 {[%clk 0:00:10.2]} 33. Ng4 {[%clk 0:01:14.3]} 33...
Qf7 {[%clk 0:00:04.9]} 34. Re6 {[%clk 0:01:14.3]} 34... Rxe6 {[%clk 0:00:04.5]}
35. dxe6 {[%clk 0:01:12]} 35... Qxe6 {[%clk 0:00:05.4]} 36. b3 {[%clk
0:01:09.8]} 36... Bb7 {[%clk 0:00:05.7]} 37. f3 {[%clk 0:01:07.8]} 37... Bd4+
{[%clk 0:00:04.8]} 38. Kh2 {[%clk 0:01:07.4]} 38... Kg7 {[%clk 0:00:05.7]} 39.
Bxg6 {[%clk 0:01:04.5]} 39... Qxg6 {[%clk 0:00:06.6]} 40. Qe2 {[%clk 0:01:04.8]}
40... Qf7 {[%clk 0:00:06.9]} 41. h4 {[%clk 0:01:03.6]} 41... Bc8 {[%clk
0:00:07.3]} 42. Kh3 {[%clk 0:01:00.5]} 42... Bf5 {[%clk 0:00:07.3]} 43. b4
{[%clk 0:00:59.1]} 43... Qe6 {[%clk 0:00:07.5]} 44. Qd2 {[%clk 0:00:58.3]} 44...
Qe3 {[%clk 0:00:06.7]} 45. Qd1 {[%clk 0:00:55.3]} 45... Qg1 {[%clk 0:00:05.8]}
46. Qxg1 {[%clk 0:00:52.8]} 46... Bxg1 {[%clk 0:00:06.7]} 47. h5 {[%clk
0:00:53.2]} 47... cxb4 {[%clk 0:00:05.3]} 48. axb4 {[%clk 0:00:52.6]} 48... a5
{[%clk 0:00:05.8]} 49. bxa5 {[%clk 0:00:50]} 49... bxa5 {[%clk 0:00:06.7]} 50.
Kh4 {[%clk 0:00:49.7]} 50... Bxg4 {[%clk 0:00:07.1]} 51. fxg4 {[%clk 0:00:49.4]}
51... a4 {[%clk 0:00:08]} 52. g5 {[%clk 0:00:49.5]} 52... a3 {[%clk 0:00:07.8]}
53. h6+ {[%clk 0:00:49.2]} 53... Kg6 {[%clk 0:00:08.3]} 54. Kg4 {[%clk
0:00:48.7]} 54... a2 {[%clk 0:00:08.6]} 55. Kxf4 {[%clk 0:00:49.1]} 55... a1=Q
{[%clk 0:00:09.1]} 56. Kg4 {[%clk 0:00:48.7]} 56... Qd4+ {[%clk 0:00:10]} 0-1

[Event "*** Titled Tuesday Blitz"]
[Site "Chess.com"]
[Date "2020.04.07"]
[Round "4"]
[White "Sibelephant"]
[Black "anon219"]
[Result "1-0"]
[WhiteElo "3156"]
[BlackElo "2808"]
[TimeControl "180+1"]
[EndTime "13:41:21 PDT"]
[Termination "Sibelephant won by resignation"]

1. d4 {[%clk 0:02:59.7]} 1... Nf6 {[%clk 0:02:58.4]} 2. c4 {[%clk 0:03:00]} 2...
e6 {[%clk 0:02:58.9]} 3. Nf3 {[%clk 0:03:00.3]} 3... d5 {[%clk 0:02:59.5]} 4. e3
{[%clk 0:03:00.8]} 4... a6 {[%clk 0:02:55.2]} 5. b3 {[%clk 0:03:00.5]} 5... Be7
{[%clk 0:02:55.1]} 6. Bd3 {[%clk 0:03:00.4]} 6... O-O {[%clk 0:02:55.4]} 7. O-O
{[%clk 0:03:00.7]} 7... b6 {[%clk 0:02:48.6]} 8. Bb2 {[%clk 0:03:00.2]} 8... Bb7
{[%clk 0:02:49.1]} 9. Nc3 {[%clk 0:02:51.4]} 9... dxc4 {[%clk 0:02:43.8]} 10.
bxc4 {[%clk 0:02:50.9]} 10... c5 {[%clk 0:02:44.3]} 11. Qe2 {[%clk 0:02:43.2]}
11... Nc6 {[%clk 0:02:39.7]} 12. Rad1 {[%clk 0:02:42.3]} 12... cxd4 {[%clk
0:02:39.9]} 13. exd4 {[%clk 0:02:42.2]} 13... Re8 {[%clk 0:02:35.3]} 14. Ne4
{[%clk 0:02:15.5]} 14... Rc8 {[%clk 0:02:26.6]} 15. Ne5 {[%clk 0:02:00.9]} 15...
Qc7 {[%clk 0:02:05.8]} 16. Nxf7 {[%clk 0:01:30.5]} 16... Nxe4 {[%clk 0:01:53.7]}
17. Qxe4 {[%clk 0:01:30.4]} 17... Kxf7 {[%clk 0:01:53.7]} 18. Qxh7 {[%clk
0:01:30]} 18... Rh8 {[%clk 0:01:45.9]} 19. Qg6+ {[%clk 0:01:25.6]} 19... Kf8
{[%clk 0:01:45.1]} 20. h3 {[%clk 0:01:10.8]} 20... Bf6 {[%clk 0:01:40.3]} 21.
Qg4 {[%clk 0:01:05.4]} 21... Re8 {[%clk 0:01:16.1]} 22. Bg6 {[%clk 0:00:57.2]}
22... Rh4 {[%clk 0:01:15.4]} 23. Qe2 {[%clk 0:00:41.7]} 23... Nxd4 {[%clk
0:00:43.4]} 24. Bxd4 {[%clk 0:00:38.4]} 24... Bxd4 {[%clk 0:00:44.3]} 25. Rxd4
{[%clk 0:00:21.1]} 25... Rxd4 {[%clk 0:00:45.2]} 26. Bxe8 {[%clk 0:00:20.4]}
26... Kxe8 {[%clk 0:00:45.7]} 27. Qxe6+ {[%clk 0:00:21.1]} 27... Kf8 {[%clk
0:00:41.9]} 28. Re1 {[%clk 0:00:16.3]} 28... Qc6 {[%clk 0:00:39.9]} 29. Qf5+
{[%clk 0:00:10.1]} 29... Kg8 {[%clk 0:00:39.2]} 30. f3 {[%clk 0:00:06.6]} 30...
Rd8 {[%clk 0:00:27.4]} 31. Re7 {[%clk 0:00:05]} 31... Rf8 {[%clk 0:00:19.2]} 32.
Qe5 {[%clk 0:00:04.9]} 32... Rf7 {[%clk 0:00:09]} 33. Re8+ {[%clk 0:00:05.1]}
33... Rf8 {[%clk 0:00:09.5]} 34. Re7 {[%clk 0:00:05.5]} 34... Rf7 {[%clk
0:00:10]} 35. Qb8+ {[%clk 0:00:06.1]} 35... Rf8 {[%clk 0:00:04.7]} 36. Qxb7
{[%clk 0:00:05.9]} 36... Qxb7 {[%clk 0:00:05.1]} 37. Rxb7 {[%clk 0:00:05.6]}
37... Rc8 {[%clk 0:00:06]} 38. Rxb6 {[%clk 0:00:05.7]} 38... Rxc4 {[%clk
0:00:06.9]} 39. Rxa6 {[%clk 0:00:06.1]} 1-0

[Event "*** Titled Tuesday Blitz"]
[Site "Chess.com"]
[Date "2020.04.07"]
[Round "4"]
[White "english_player_89"]
[Black "WIDBIFS"]
[Result "0-1"]
[WhiteElo "2551"]
[BlackElo "2796"]
[TimeControl "180+1"]
[EndTime "13:41:21 PDT"]
[Termination "WIDBIFS won by resignation"]

1. e4 {[%clk 0:03:00.9]} 1... g6 {[%clk 0:02:59.8]} 2. d4 {[%clk 0:03:00.6]}
2... Bg7 {[%clk 0:02:59.4]} 3. Nc3 {[%clk 0:02:58.6]} 3... c6 {[%clk 0:02:59.7]}
4. Nf3 {[%clk 0:02:56.5]} 4... d6 {[%clk 0:02:59.2]} 5. g3 {[%clk 0:02:54]} 5...
Nf6 {[%clk 0:02:59.5]} 6. a4 {[%clk 0:02:52.8]} 6... O-O {[%clk 0:02:59.7]} 7.
Bg2 {[%clk 0:02:52.5]} 7... Nbd7 {[%clk 0:02:56.1]} 8. e5 {[%clk 0:02:29]} 8...
Nd5 {[%clk 0:02:55.8]} 9. Nxd5 {[%clk 0:02:26]} 9... cxd5 {[%clk 0:02:56.7]} 10.
exd6 {[%clk 0:02:24.5]} 10... exd6 {[%clk 0:02:40.4]} 11. O-O {[%clk 0:02:24.3]}
11... Nf6 {[%clk 0:02:40.6]} 12. Re1 {[%clk 0:02:16.4]} 12... Ne4 {[%clk
0:02:36.2]} 13. c3 {[%clk 0:02:12.2]} 13... Re8 {[%clk 0:02:35]} 14. Qb3 {[%clk
0:02:01]} 14... Be6 {[%clk 0:02:12.9]} 15. Qxb7 {[%clk 0:01:52.8]} 15... Qf6
{[%clk 0:02:13.3]} 16. Qa6 {[%clk 0:01:39.5]} 16... g5 {[%clk 0:01:49.5]} 17.
Qf1 {[%clk 0:01:02.9]} 17... Bf5 {[%clk 0:01:18.1]} 18. Nd2 {[%clk 0:00:57.9]}
18... Qg6 {[%clk 0:01:13.4]} 19. Nxe4 {[%clk 0:00:57.4]} 19... dxe4 {[%clk
0:01:07.6]} 20. Be3 {[%clk 0:00:56.8]} 20... h5 {[%clk 0:01:05.3]} 21. h3 {[%clk
0:00:51.3]} 21... h4 {[%clk 0:00:51.5]} 22. Qe2 {[%clk 0:00:45.3]} 22... g4
{[%clk 0:00:49.2]} 23. Kh2 {[%clk 0:00:32.5]} 23... hxg3+ {[%clk 0:00:48.8]} 24.
fxg3 {[%clk 0:00:31.9]} 24... gxh3 {[%clk 0:00:42.3]} 25. Bxh3 {[%clk
0:00:30.9]} 25... Qh7 {[%clk 0:00:20]} 26. Qg2 {[%clk 0:00:30.9]} 26... Bg4
{[%clk 0:00:14.7]} 27. Kg1 {[%clk 0:00:21.5]} 27... Bxh3 {[%clk 0:00:14]} 28.
Qf2 {[%clk 0:00:20.5]} 28... Bg4 {[%clk 0:00:14.1]} 29. Qh2 {[%clk 0:00:17.2]}
29... Bf3 {[%clk 0:00:12.5]} 30. Qxh7+ {[%clk 0:00:16.7]} 30... Kxh7 {[%clk
0:00:13.4]} 31. Bf4 {[%clk 0:00:17.6]} 31... d5 {[%clk 0:00:13]} 32. Kf2 {[%clk
0:00:18.2]} 32... Kg6 {[%clk 0:00:13.7]} 33. Ke3 {[%clk 0:00:18.1]} 33... Rh8
{[%clk 0:00:13.9]} 34. c4 {[%clk 0:00:17.8]} 34... dxc4 {[%clk 0:00:13.9]} 35.
Rec1 {[%clk 0:00:15.5]} 35... Rac8 {[%clk 0:00:12.7]} 36. Be5 {[%clk 0:00:13.5]}
36... Bxe5 {[%clk 0:00:11.9]} 37. dxe5 {[%clk 0:00:14.4]} 37... Kf5 {[%clk
0:00:12.6]} 38. a5 {[%clk 0:00:14.2]} 38... a6 {[%clk 0:00:12.5]} 39. Ra4 {[%clk
0:00:14.5]} 39... Rhd8 {[%clk 0:00:10]} 40. Raxc4 {[%clk 0:00:13.2]} 40... Rxc4
{[%clk 0:00:10.9]} 41. Rxc4 {[%clk 0:00:14.1]} 41... Rd3+ {[%clk 0:00:11.5]} 42.
Kf2 {[%clk 0:00:14.6]} 42... Rd2+ {[%clk 0:00:11]} 43. Kf1 {[%clk 0:00:14.2]}
43... Rxb2 {[%clk 0:00:09.5]} 44. Rc5 {[%clk 0:00:12.5]} 44... Ke6 {[%clk
0:00:08.9]} 45. Rc6+ {[%clk 0:00:12.1]} 45... Kxe5 {[%clk 0:00:09.5]} 46. Rxa6
{[%clk 0:00:13]} 46... Be2+ {[%clk 0:00:10.1]} 47. Ke1 {[%clk 0:00:12.4]} 47...
Bxa6 {[%clk 0:00:11]} 0-1

[Event "*** Titled Tuesday Blitz"]
[Site "Chess.com"]
[Date "2020.04.07"]
[Round "4"]
[White "kungmongmanh"]
[Black "W_Amadeus"]
[Result "0-1"]
[WhiteElo "2543"]
[BlackElo "2750"]
[TimeControl "180+1"]
[EndTime "13:41:21 PDT"]
[Termination "W_Amadeus won on time"]

1. d4 {[%clk 0:03:00.8]} 1... Nf6 {[%clk 0:02:57.8]} 2. c4 {[%clk 0:03:00.8]}
2... e6 {[%clk 0:02:57.9]} 3. Nc3 {[%clk 0:03:00.4]} 3... Bb4 {[%clk 0:02:58.4]}
4. Qc2 {[%clk 0:03:00.7]} 4... O-O {[%clk 0:02:57.5]} 5. Nf3 {[%clk 0:03:01]}
5... d5 {[%clk 0:02:57.2]} 6. cxd5 {[%clk 0:03:01.4]} 6... exd5 {[%clk
0:02:55.9]} 7. Bg5 {[%clk 0:03:01.4]} 7... h6 {[%clk 0:02:41.2]} 8. Bh4 {[%clk
0:03:01.1]} 8... c5 {[%clk 0:02:40.8]} 9. dxc5 {[%clk 0:03:01.2]} 9... Be6
{[%clk 0:02:40.9]} 10. e3 {[%clk 0:02:59.7]} 10... Nbd7 {[%clk 0:02:38.9]} 11.
Bd3 {[%clk 0:02:28.6]} 11... Rc8 {[%clk 0:02:35]} 12. O-O {[%clk 0:02:09.5]}
12... Rxc5 {[%clk 0:02:27.9]} 13. Nd4 {[%clk 0:02:09.3]} 13... Bxc3 {[%clk
0:01:47.5]} 14. bxc3 {[%clk 0:02:07.7]} 14... Qc7 {[%clk 0:01:48.1]} 15. Bg3
{[%clk 0:02:03.3]} 15... Ne5 {[%clk 0:01:24.5]} 16. Bf5 {[%clk 0:01:03.4]} 16...
Bxf5 {[%clk 0:00:59.9]} 17. Qxf5 {[%clk 0:01:00.9]} 17... Re8 {[%clk 0:01:00.2]}
18. Rab1 {[%clk 0:00:44.4]} 18... Ne4 {[%clk 0:00:33.7]} 19. Rb5 {[%clk
0:00:17]} 19... b6 {[%clk 0:00:23.2]} 20. Rxc5 {[%clk 0:00:14]} 20... bxc5
{[%clk 0:00:24.1]} 21. Nf3 {[%clk 0:00:11.7]} 21... Nxf3+ {[%clk 0:00:14.5]} 22.
gxf3 {[%clk 0:00:11.6]} 22... Nxg3 {[%clk 0:00:12.7]} 23. hxg3 {[%clk
0:00:11.3]} 23... Qa5 {[%clk 0:00:10.2]} 24. Qxd5 {[%clk 0:00:11.1]} 24... Qxc3
{[%clk 0:00:10.2]} 25. Rb1 {[%clk 0:00:10.9]} 25... c4 {[%clk 0:00:06.6]} 26.
Rb7 {[%clk 0:00:07.6]} 26... Rf8 {[%clk 0:00:05.2]} 27. Rxa7 {[%clk 0:00:06.9]}
27... Qa1+ {[%clk 0:00:04.2]} 28. Kg2 {[%clk 0:00:07.1]} 28... c3 {[%clk
0:00:04.8]} 29. Rc7 {[%clk 0:00:07.3]} 29... Qb2 {[%clk 0:00:04.3]} 30. Qb3
{[%clk 0:00:06.6]} 30... Qd2 {[%clk 0:00:02.7]} 31. Rxc3 {[%clk 0:00:05.4]}
31... Ra8 {[%clk 0:00:03]} 32. Rc2 {[%clk 0:00:05.4]} 32... Qd7 {[%clk
0:00:02.6]} 33. Rc4 {[%clk 0:00:05.2]} 33... g6 {[%clk 0:00:02.9]} 34. Rf4
{[%clk 0:00:04.7]} 34... h5 {[%clk 0:00:02.9]} 35. Qc4 {[%clk 0:00:04.1]} 35...
Ra7 {[%clk 0:00:03.3]} 36. Rd4 {[%clk 0:00:04.1]} 36... Qe7 {[%clk 0:00:03.5]}
0-1

[Event "*** Titled Tuesday Blitz"]
[Site "Chess.com"]
[Date "2020.04.07"]
[Round "4"]
[White "BabyFacedAssasin"]
[Black "viggi38"]
[Result "0-1"]
[WhiteElo "2307"]
[BlackElo "2482"]
[TimeControl "180+1"]
[EndTime "13:41:21 PDT"]
[Termination "viggi38 won on time"]

1. e4 {[%clk 0:03:00.9]} 1... d5 {[%clk 0:02:55.2]} 2. exd5 {[%clk 0:02:59.3]}
2... Qxd5 {[%clk 0:02:56.1]} 3. Nf3 {[%clk 0:02:59.6]} 3... Bg4 {[%clk
0:02:47.9]} 4. Be2 {[%clk 0:02:58.2]} 4... Nc6 {[%clk 0:02:48.5]} 5. d4 {[%clk
0:02:57.9]} 5... O-O-O {[%clk 0:02:46.7]} 6. c4 {[%clk 0:02:57.9]} 6... Qa5+
{[%clk 0:02:45]} 7. Nc3 {[%clk 0:02:53.7]} 7... Bxf3 {[%clk 0:02:42]} 8. Bxf3
{[%clk 0:02:47.2]} 8... Nxd4 {[%clk 0:02:42.1]} 9. O-O {[%clk 0:02:45.5]} 9...
Nf6 {[%clk 0:02:38.7]} 10. Be3 {[%clk 0:02:42]} 10... e5 {[%clk 0:02:35.1]} 11.
Bxd4 {[%clk 0:02:16.4]} 11... exd4 {[%clk 0:02:34.2]} 12. Nd5 {[%clk 0:02:15.6]}
12... Nxd5 {[%clk 0:02:32]} 13. Bxd5 {[%clk 0:02:15.6]} 13... Rxd5 {[%clk
0:02:29.6]} 14. cxd5 {[%clk 0:02:15]} 14... Qxd5 {[%clk 0:02:30.5]} 15. Qd3
{[%clk 0:02:09.3]} 15... Be7 {[%clk 0:02:30.3]} 16. Rfd1 {[%clk 0:02:06.1]}
16... Bf6 {[%clk 0:02:30.5]} 17. Rac1 {[%clk 0:02:05]} 17... Kb8 {[%clk
0:02:26.7]} 18. b3 {[%clk 0:02:01]} 18... b6 {[%clk 0:02:24.7]} 19. Re1 {[%clk
0:02:00.3]} 19... c5 {[%clk 0:02:22]} 20. Qg3+ {[%clk 0:01:55.8]} 20... Kb7
{[%clk 0:02:20.4]} 21. Qd3 {[%clk 0:01:50.9]} 21... h6 {[%clk 0:02:17.9]} 22. a4
{[%clk 0:01:50.8]} 22... a6 {[%clk 0:02:15.9]} 23. h3 {[%clk 0:01:11]} 23... Rd8
{[%clk 0:01:48.7]} 24. Re4 {[%clk 0:01:10.3]} 24... Rd7 {[%clk 0:01:45.8]} 25.
Rce1 {[%clk 0:01:10.2]} 25... Qc6 {[%clk 0:01:43.3]} 26. Re8 {[%clk 0:01:08.6]}
26... b5 {[%clk 0:01:42.3]} 27. axb5 {[%clk 0:01:07.8]} 27... axb5 {[%clk
0:01:43.2]} 28. Rc1 {[%clk 0:00:51.8]} 28... Rc7 {[%clk 0:01:42.5]} 29. Ree1
{[%clk 0:00:46.1]} 29... Kb6 {[%clk 0:01:26.6]} 30. Ra1 {[%clk 0:00:45]} 30...
Ra7 {[%clk 0:01:19.2]} 31. Rxa7 {[%clk 0:00:43.1]} 31... Kxa7 {[%clk 0:01:20.1]}
32. Ra1+ {[%clk 0:00:43]} 32... Kb6 {[%clk 0:01:18.7]} 33. Qd2 {[%clk
0:00:36.3]} 33... Kc7 {[%clk 0:01:16.5]} 34. Ra7+ {[%clk 0:00:34.7]} 34... Kd6
{[%clk 0:01:16.5]} 35. Qf4+ {[%clk 0:00:29.2]} 35... Ke6 {[%clk 0:01:15.9]} 36.
g4 {[%clk 0:00:22.5]} 36... c4 {[%clk 0:00:51.7]} 37. Qf5+ {[%clk 0:00:13.6]}
37... Kd6 {[%clk 0:00:51.7]} 38. Qf4+ {[%clk 0:00:12]} 38... Ke6 {[%clk
0:00:36.9]} 39. Qf5+ {[%clk 0:00:12.1]} 39... Kd6 {[%clk 0:00:37.2]} 40. Qf4+
{[%clk 0:00:12.2]} 40... Be5 {[%clk 0:00:37.7]} 41. Qxf7 {[%clk 0:00:11.8]}
41... c3 {[%clk 0:00:32.2]} 42. Qe7+ {[%clk 0:00:12.1]} 42... Kd5 {[%clk
0:00:32.5]} 43. Rd7+ {[%clk 0:00:12.2]} 43... Ke4 {[%clk 0:00:33.1]} 44. f3+
{[%clk 0:00:07.5]} 44... Kxf3 {[%clk 0:00:28.2]} 45. Qf7+ {[%clk 0:00:06.7]}
45... Bf6 {[%clk 0:00:25.1]} 46. Rxd4 {[%clk 0:00:04.3]} 46... Qc5 {[%clk
0:00:16.8]} 47. Qd5+ {[%clk 0:00:01.3]} 47... Qxd5 {[%clk 0:00:17.1]} 0-1

[Event "*** Titled Tuesday Blitz"]
[Site "Chess.com"]
[Date "2020.04.07"]
[Round "4"]
[White "Walter_White_Poland"]
[Black "sergeikim"]
[Result "1-0"]
[WhiteElo "2121"]
[BlackElo "2330"]
[TimeControl "180+1"]
[EndTime "13:41:22 PDT"]
[Termination "Walter_White_Poland won by resignation"]

1. e4 {[%clk 0:03:00.9]} 1... e5 {[%clk 0:02:59.4]} 2. Nf3 {[%clk 0:03:00.2]}
2... Nc6 {[%clk 0:02:59.3]} 3. Bb5 {[%clk 0:03:00.1]} 3... a6 {[%clk 0:02:59.4]}
4. Ba4 {[%clk 0:03:00.2]} 4... Nf6 {[%clk 0:02:59.4]} 5. O-O {[%clk 0:03:00]}
5... Be7 {[%clk 0:02:56.2]} 6. Re1 {[%clk 0:03:00]} 6... b5 {[%clk 0:02:56]} 7.
Bb3 {[%clk 0:02:59.5]} 7... O-O {[%clk 0:02:56.6]} 8. h3 {[%clk 0:02:58.8]} 8...
d6 {[%clk 0:02:56.3]} 9. c3 {[%clk 0:02:57.9]} 9... Na5 {[%clk 0:02:54.8]} 10.
Bc2 {[%clk 0:02:58.2]} 10... c5 {[%clk 0:02:54.5]} 11. d4 {[%clk 0:02:58.4]}
11... Qc7 {[%clk 0:02:54.3]} 12. d5 {[%clk 0:02:54.5]} 12... Nb7 {[%clk
0:02:53.2]} 13. Nbd2 {[%clk 0:02:50.4]} 13... Nd8 {[%clk 0:02:52.6]} 14. Nf1
{[%clk 0:02:49.9]} 14... Ne8 {[%clk 0:02:52.6]} 15. a4 {[%clk 0:02:43.6]} 15...
Rb8 {[%clk 0:02:51.6]} 16. axb5 {[%clk 0:02:38.9]} 16... axb5 {[%clk 0:02:52.1]}
17. b4 {[%clk 0:02:36.2]} 17... c4 {[%clk 0:02:50.7]} 18. Ng3 {[%clk 0:02:28.9]}
18... g6 {[%clk 0:02:50.7]} 19. Be3 {[%clk 0:02:21.4]} 19... Ng7 {[%clk
0:02:49.9]} 20. Ra7 {[%clk 0:02:20.1]} 20... Rb7 {[%clk 0:02:50]} 21. Qa1 {[%clk
0:02:15.6]} 21... f6 {[%clk 0:02:49.2]} 22. Qa5 {[%clk 0:02:04.1]} 22... Qd7
{[%clk 0:02:48]} 23. Ra1 {[%clk 0:01:51]} 23... Nf7 {[%clk 0:02:47.1]} 24. Rxb7
{[%clk 0:01:43]} 24... Bxb7 {[%clk 0:02:45.9]} 25. Qb6 {[%clk 0:01:14.7]} 25...
Bd8 {[%clk 0:02:43.6]} 26. Qa7 {[%clk 0:01:14]} 26... Qc8 {[%clk 0:02:36.1]} 27.
Bb6 {[%clk 0:00:59.8]} 27... Be7 {[%clk 0:02:32]} 28. Ra5 {[%clk 0:00:39.5]}
28... Qd7 {[%clk 0:02:29.9]} 29. Be3 {[%clk 0:00:28.9]} 29... Bd8 {[%clk
0:02:28.6]} 30. Ra1 {[%clk 0:00:27.9]} 30... Qc8 {[%clk 0:02:25.5]} 31. Bb6
{[%clk 0:00:26.2]} 31... Be7 {[%clk 0:02:24.7]} 32. Be3 {[%clk 0:00:26.1]} 32...
f5 {[%clk 0:02:21]} 33. exf5 {[%clk 0:00:16]} 33... gxf5 {[%clk 0:02:19.2]} 34.
Bb6 {[%clk 0:00:10.8]} 34... Bf6 {[%clk 0:02:12.9]} 35. Qa2 {[%clk 0:00:09.3]}
35... Bxd5 {[%clk 0:02:08.5]} 36. Qb1 {[%clk 0:00:08.6]} 36... Qb7 {[%clk
0:02:02.5]} 37. Be3 {[%clk 0:00:06.6]} 37... f4 {[%clk 0:01:51.3]} 38. Ra7
{[%clk 0:00:06.4]} 38... Qc8 {[%clk 0:01:47.4]} 39. Bxh7+ {[%clk 0:00:06.4]}
39... Kh8 {[%clk 0:01:46.6]} 40. Qg6 {[%clk 0:00:06.7]} 40... Qd8 {[%clk
0:01:37.5]} 41. Bg8 {[%clk 0:00:05]} 41... Kxg8 {[%clk 0:01:34.5]} 42. Nh5
{[%clk 0:00:05.1]} 42... Bxf3 {[%clk 0:00:50.8]} 43. Nxf6+ {[%clk 0:00:05]}
43... Qxf6 {[%clk 0:00:50.5]} 44. Qxf6 {[%clk 0:00:05.4]} 44... fxe3 {[%clk
0:00:50.4]} 45. fxe3 {[%clk 0:00:05.3]} 45... Bd5 {[%clk 0:00:47.2]} 46. h4
{[%clk 0:00:03.9]} 46... Ne8 {[%clk 0:00:43.6]} 47. Qg6+ {[%clk 0:00:03.2]}
47... Ng7 {[%clk 0:00:43.5]} 48. h5 {[%clk 0:00:02.6]} 48... Kh8 {[%clk
0:00:43.2]} 49. h6 {[%clk 0:00:02.5]} 49... Ne8 {[%clk 0:00:42.8]} 50. Qh5
{[%clk 0:00:02.5]} 50... Kh7 {[%clk 0:00:41.6]} 51. e4 {[%clk 0:00:03]} 51...
Be6 {[%clk 0:00:40.2]} 52. Qh4 {[%clk 0:00:03.2]} 52... Kg6 {[%clk 0:00:36.6]}
53. Qe7 {[%clk 0:00:03.3]} 53... Rh8 {[%clk 0:00:34]} 54. Qxe6+ {[%clk
0:00:03.4]} 54... Kg5 {[%clk 0:00:32.9]} 55. Qxf7 {[%clk 0:00:04.3]} 55... Nf6
{[%clk 0:00:31.5]} 56. Qg7+ {[%clk 0:00:04.4]} 56... Kf4 {[%clk 0:00:31.3]} 57.
Qxh8 {[%clk 0:00:05.3]} 1-0